fUSD/lending_fUSD_20251225
["ID","MTS","AMOUNT","RATE_DAILY","PERIOD"]
[399749950,1766658291573,-227.37515757,0.00042882,120]
[399749951,1766658291600,-912.48549255,0.00042882,120]
[399749952,1766658291627,-190.86576839,0.00042882,90]
[399749953,1766658291655,-503.73331897,0.00042882,120]
[399749954,1766658291681,-756.75861255,0.00042882,120]
[399749955,1766658291709,-241.95373326,0.00042882,120]
[399749956,1766658291735,-314.85662808,0.00042882,120]
[399749957,1766658291761,-157.31629602,0.00042882,120]
[399749958,1766658291788,-381.60053151,0.00042882,120]
[399749959,1766658291815,-1425.00164552,0.00042882,120]
[399749960,1766658291841,-486.84875044,0.00042882,120]
[399749961,1766658291867,-7796.59983848,0.00042882,60]
[399749962,1766658291893,-682.8698502,0.00042882,120]
[399749963,1766658291919,-11698.20649863,0.00042882,60]
[399749964,1766658291946,-422.42544422,0.00042882,120]
[399749965,1766658291974,-233.67544083,0.00042882,120]
[399749966,1766658292003,-415.04331101,0.00042882,120]
[399749967,1766658292193,-1025557.0,0.00042882,90]
[399749968,1766658292224,-250.35329,0.00042882,120]
[399749969,1766658292254,-317.11,0.00042882,120]
[399749970,1766658292282,-15368.1902206,0.00042882,120]
[399749971,1766658292310,-16400.0,0.00042882,120]
[399749972,1766658292338,-954.9352624,0.00042882,120]
[399749973,1766658292365,-201.14639068,0.00042882,120]
[399749974,1766658292392,-150.00010976,0.00042882,120]
[399749975,1766658292420,-2054.7547594,0.00042882,120]
[399749976,1766658292447,-2962.55250558,0.00042882,120]
[399749977,1766658292473,-183.28088802,0.00042882,120]
[399749978,1766658292499,-216.56177605,0.00042882,120]
[399749979,1766658292527,-500.0,0.00042882,120]
[399749980,1766658292553,-231.57736352,0.00042882,120]
[399749981,1766658292580,-14145.76,0.00042882,120]
[399749982,1766658293226,534.14774107,0.00032876,120]
[399749983,1766658294683,1109.00444245,0.00042882,120]
[399749984,1766658294771,500.0,0.00042882,120]
[399749985,1766658295257,309.46072033,0.00042882,120]
[399749986,1766658305414,2500.0,0.00010542,2]
[399749987,1766658316115,-500.0,0.00032876,90]
[399749988,1766658316147,-500.0,0.00032876,90]
[399749989,1766658316180,-500.0,0.00032876,90]
[399749990,1766658316211,-500.0,0.00032876,90]
[399749991,1766658316244,-500.0,0.00032876,90]
[399749992,1766658316276,-500.0,0.00032876,90]
[399749993,1766658316307,-500.0,0.00032876,90]
[399749994,1766658316337,-500.0,0.00032876,90]
[399749995,1766658316367,-365.29532974,0.00032876,90]
[399749996,1766658316439,-200.0,0.00034,120]
[399749997,1766658316473,-818.39207627,0.00035,60]
[399749998,1766658316505,-151000.0,0.00035,120]
[399749999,1766658316538,-2879.39,0.00035616,120]
[399750000,1766658316570,-200.0,0.00036,120]
[399750001,1766658316604,-2879.39,0.00036712,120]
[399750002,1766658316637,-152.0,0.00037,120]
[399750003,1766658316669,-13766.41101951,0.000372,120]
[399750004,1766658316702,-1444.0,0.00037753,120]
[399750005,1766658316734,-2879.39,0.00037808,120]
[399750006,1766658316766,-2213.2,0.00038,60]
[399750007,1766658316800,-200.0,0.00038,120]
[399750008,1766658316833,-300.0,0.00038356,120]
[399750009,1766658316866,-290.479999,0.000385,60]
[399750010,1766658316900,-445.07153394,0.000385,120]
[399750011,1766658317185,-105163.85304211,0.000385,120]
[399750012,1766658317216,-300.251727,0.00038523,90]
[399750013,1766658317248,-20011.33698305,0.000388,120]
[399750014,1766658317280,-2879.39,0.00038904,120]
[399750015,1766658317315,-150.0,0.00039,120]
[399750016,1766658317344,-1663.00409487,0.00039,120]
[399750017,1766658317375,-500.0,0.00039,61]
[399750018,1766658317408,-1000000.0,0.00039,120]
[399750019,1766658317443,-70000.0,0.00039025,117]
[399750020,1766658317476,-80000.0,0.0003915,118]
[399750021,1766658317507,-2000.0,0.000392,120]
[399750022,1766658317537,-2000.0,0.000392,120]
[399750023,1766658317566,-2000.0,0.000392,120]
[399750024,1766658317596,-2000.0,0.000392,120]
[399750025,1766658317625,-2000.0,0.000392,120]
[399750026,1766658317654,-590.0,0.000392,120]
[399750027,1766658317684,-644.13,0.00039221,120]
[399750028,1766658317724,-90000.0,0.0003942,119]
[399750029,1766658317764,-100000.0,0.0003948,120]
[399750030,1766658317798,-300.0,0.00039507,120]
[399750031,1766658317832,-300.0,0.00039507,120]
[399750032,1766658317866,-300.0,0.00039507,120]
[399750033,1766658317900,-300.0,0.00039507,120]
[399750034,1766658317934,-300.0,0.00039507,120]
[399750035,1766658317968,-300.0,0.00039507,120]
[399750036,1766658318003,-300.0,0.00039507,120]
[399750037,1766658318040,-300.0,0.00039507,120]
[399750038,1766658318075,-300.0,0.00039507,120]
[399750039,1766658318110,-300.0,0.00039507,120]
[399750040,1766658318146,-300.0,0.00039507,120]
[399750041,1766658318180,-300.0,0.00039507,120]
[399750042,1766658318219,-300.0,0.00039507,120]
[399750043,1766658318254,-300.0,0.00039507,120]
[399750044,1766658318290,-300.0,0.00039507,120]
[399750045,1766658318325,-300.0,0.00039507,120]
[399750046,1766658318361,-300.0,0.00039507,120]
[399750047,1766658318395,-300.0,0.00039507,120]
[399750048,1766658318429,-300.0,0.00039507,120]
[399750049,1766658318462,-60000.0,0.00039568,116]
[399750050,1766658318498,-50000.0,0.0003982,115]
[399750051,1766658318531,-157.0,0.000399,90]
[399750052,1766658318565,-161.31658477,0.000399,120]
[399750053,1766658318599,-161.31658477,0.000399,120]
[399750054,1766658318633,-161.31658477,0.000399,120]
[399750055,1766658318666,-161.31658477,0.000399,120]
[399750056,1766658318704,-161.31658477,0.000399,120]
[399750057,1766658318737,-161.31658477,0.000399,120]
[399750058,1766658318768,-161.31658477,0.000399,120]
[399750059,1766658318800,-161.31658477,0.000399,120]
[399750060,1766658318835,-186.29295221,0.0004,120]
[399750061,1766658318867,-9352.0,0.0004,120]
[399750062,1766658318899,-150.0,0.0004,120]
[399750063,1766658318931,-223.0,0.0004,120]
[399750064,1766658318962,-579.17517214,0.0004,120]
[399750065,1766658318995,-7715.07946961,0.0004,120]
[399750066,1766658319028,-177.5,0.0004,120]
[399750067,1766658319062,-300.0,0.0004,120]
[399750068,1766658319094,-47736.0,0.0004,120]
[399750069,1766658319128,-100000.0,0.0004,120]
[399750070,1766658319160,-10715.0,0.0004,120]
[399750071,1766658319200,-500.0,0.0004,62]
[399750072,1766658319233,-500.0,0.0004,60]
[399750073,1766658319268,-184.0,0.0004,120]
[399750074,1766658319299,-175.04324912,0.0004,120]
[399750075,1766658319330,-158.86,0.0004,120]
[399750076,1766658319362,-301.85669932,0.0004,120]
[399750077,1766658319395,-150.0,0.0004,60]
[399750078,1766658319426,-310.77,0.0004,120]
[399750079,1766658319458,-598.08,0.0004,120]
[399750080,1766658319491,-159.41,0.0004,120]
[399750081,1766658319523,-364.44,0.0004,120]
[399750082,1766658319554,-682.25,0.0004,120]
[399750083,1766658319585,-280.14,0.0004,120]
[399750084,1766658319616,-500.0,0.0004,120]
[399750085,1766658319652,-2879.39,0.0004,120]
[399750086,1766658319685,-152.19,0.00040028,120]
[399750087,1766658319718,-152.19,0.00040128,120]
[399750088,1766658319750,-500.0,0.00040138,66]
[399750089,1766658319783,-152.19,0.00040228,120]
[399750090,1766658319815,-152.19,0.00040328,120]
[399750091,1766658319847,-152.19,0.00040428,120]
[399750092,1766658319877,-702.43071898,0.000405,120]
[399750093,1766658319907,-500.0,0.000405,120]
[399750094,1766658319939,-152.19,0.00040528,120]
[399750095,1766658319971,-1594.12069331,0.00040581,62]
[399750096,1766658320003,-184.0,0.000406,120]
[399750097,1766658320040,-152.19,0.00040628,120]
[399750098,1766658320074,-379.0,0.00040658,120]
[399750099,1766658320108,-379.0,0.00040658,120]
[399750100,1766658320145,-379.0,0.00040658,120]
[399750101,1766658320179,-379.0,0.00040658,120]
[399750102,1766658320212,-379.0,0.00040658,120]
[399750103,1766658320245,-379.0,0.00040658,120]
[399750104,1766658320524,-379.0,0.00040658,120]
[399750105,1766658320557,-379.0,0.00040658,120]
[399750106,1766658320589,-379.0,0.00040658,120]
[399750107,1766658320621,-379.0,0.00040658,120]
[399750108,1766658320652,-379.0,0.00040658,120]
[399750109,1766658320683,-152.19,0.00040728,120]
[399750110,1766658320713,-218.57236467,0.00040742,120]
[399750111,1766658320762,-198.66008294,0.000408,60]
[399750112,1766658320798,-153.44953895,0.000408,60]
[399750113,1766658320832,-152.19,0.00040828,120]
[399750114,1766658320865,-152.19,0.00040928,120]
[399750115,1766658320897,-500.0,0.00040959,60]
[399750116,1766658320929,-500.0,0.00040959,60]
[399750117,1766658320959,-500.0,0.00040959,60]
[399750118,1766658320991,-500.0,0.00040959,60]
[399750119,1766658321024,-500.0,0.00040959,60]
[399750120,1766658321058,-150.0,0.00041,120]
[399750121,1766658321091,-150.0,0.00041,120]
[399750122,1766658321125,-610.0,0.00041,120]
[399750123,1766658321158,-4999.0,0.00041,90]
[399750124,1766658321195,-200.17854639,0.00041,60]
[399750125,1766658321229,-500.0,0.00041,63]
[399750126,1766658321261,-2793.0,0.00041,120]
[399750127,1766658321294,-312.1773608,0.00041,120]
[399750128,1766658321327,-150.0,0.00041,60]
[399750129,1766658321357,-500.0,0.00041,120]
[399750130,1766658321389,-150.0,0.00041005,120]
[399750131,1766658321422,-152.19,0.00041028,120]
[399750132,1766658321455,-150.0,0.00041038,120]
[399750133,1766658321487,-1115168.18206335,0.0004109,60]
[399750134,1766658321519,-500.0,0.00041095,120]
[399750135,1766658321552,-500.0,0.00041095,120]
[399750136,1766658321585,-500.0,0.00041095,120]
[399750137,1766658321618,-500.0,0.00041095,120]
[399750138,1766658321652,-2879.39,0.00041095,120]
[399750139,1766658321688,-500.0,0.00041096,120]
[399750140,1766658321721,-500.0,0.00041096,120]
[399750141,1766658321758,-500.0,0.00041096,120]
[399750142,1766658321791,-745.0,0.00041096,120]
[399750143,1766658321822,-223.08,0.00041096,120]
[399750144,1766658321854,-508.23,0.00041096,120]
[399750145,1766658321886,-151.0,0.00041096,120]
[399750146,1766658321916,-151.0,0.00041096,120]
[399750147,1766658321943,-151.0,0.00041096,120]
[399750148,1766658321972,-151.0,0.00041096,120]
[399750149,1766658322003,-151.0,0.00041096,120]
[399750150,1766658322038,-290.146438,0.00041096,120]
[399750151,1766658322071,-456.19433139,0.00041096,79]
[399750152,1766658322106,-415.4,0.00041096,116]
[399750153,1766658322138,-328.44665287,0.00041096,102]
[399750154,1766658322170,-494.4,0.00041096,84]
[399750155,1766658322208,-334.85,0.00041096,82]
[399750156,1766658322242,-483.54,0.00041096,107]
[399750157,1766658322275,-471.6,0.00041096,70]
[399750158,1766658322307,-351.87344797,0.00041096,79]
[399750159,1766658322338,-175.41448499,0.00041096,112]
[399750160,1766658322369,-433.8,0.00041096,69]
[399750161,1766658322402,-184.0,0.000411,120]
[399750162,1766658322432,-151.73586025,0.000411,120]
[399750163,1766658322465,-151.73586025,0.000411,120]
[399750164,1766658322503,-151.73586025,0.000411,120]
[399750165,1766658322536,-151.73586025,0.000411,120]
[399750166,1766658322571,-151.73586025,0.000411,120]
[399750167,1766658322609,-151.73586025,0.000411,120]
[399750168,1766658322641,-151.73586025,0.000411,120]
[399750169,1766658322675,-151.73586025,0.000411,120]
[399750170,1766658322708,-151.73586025,0.000411,120]
[399750171,1766658322739,-151.73,0.000411,120]
[399750172,1766658322769,-177.0251703,0.000411,120]
[399750173,1766658322800,-177.0251703,0.000411,120]
[399750174,1766658322830,-177.0251703,0.000411,120]
[399750175,1766658322861,-177.0251703,0.000411,120]
[399750176,1766658322893,-177.0251703,0.000411,120]
[399750177,1766658322929,-177.0251703,0.000411,120]
[399750178,1766658322964,-177.0251703,0.000411,120]
[399750179,1766658322995,-177.0251703,0.000411,120]
[399750180,1766658323034,-177.0251703,0.000411,120]
[399750181,1766658323067,-177.0251703,0.000411,120]
[399750182,1766658323100,-177.0251703,0.000411,120]
[399750183,1766658323133,-177.0251703,0.000411,120]
[399750184,1766658323166,-177.0251703,0.000411,120]
[399750185,1766658323199,-177.0251703,0.000411,120]
[399750186,1766658323234,-177.0251703,0.000411,120]
[399750187,1766658323268,-177.0251703,0.000411,120]
[399750188,1766658323302,-177.0251703,0.000411,120]
[399750189,1766658323336,-177.0251703,0.000411,120]
[399750190,1766658323370,-177.0251703,0.000411,120]
[399750191,1766658323404,-177.02,0.000411,120]
[399750192,1766658323438,-208.81974681,0.000411,120]
[399750193,1766658323473,-208.81,0.000411,120]
[399750194,1766658323513,-198.69635769,0.000411,120]
[399750195,1766658323548,-198.69,0.000411,120]
[399750196,1766658323582,-200.0,0.0004112,120]
[399750197,1766658323617,-152.19,0.00041128,120]
[399750198,1766658323650,-997.25615642,0.000412,120]
[399750199,1766658323927,-152.19,0.00041228,120]
[399750200,1766658323962,-152.19,0.00041328,120]
[399750201,1766658323995,-1000.0,0.000414,120]
[399750202,1766658324029,-152.19,0.00041428,120]
[399750203,1766658324066,-3872103.08401047,0.000415,120]
[399750204,1766658325802,3669.87449189,9e-05,2]
[399750205,1766658325826,3675.61324006,9e-05,2]
[399750206,1766658329450,-161.31658477,0.000399,120]
[399750207,1766658329492,-161.31658477,0.000399,120]
[399750208,1766658329536,-161.31658477,0.000399,120]
[399750209,1766658329582,-1127896.91598953,0.000415,120]
[399750210,1766658329618,-2517.0,0.000415,120]
[399750211,1766658329651,-500.0,0.000415,120]
[399750212,1766658329688,-901.5,0.000415,60]
[399750213,1766658329721,-152.19,0.00041528,120]
[399750214,1766658329994,-150.0,0.00041542,120]
[399750215,1766658330105,-5000.0,0.000416,60]
[399750216,1766658330138,-5000.0,0.000416,60]
[399750217,1766658330171,-5000.0,0.000416,60]
[399750218,1766658330204,-5000.0,0.000416,60]
[399750219,1766658330238,-5000.0,0.000416,60]
[399750220,1766658330270,-5000.0,0.000416,60]
[399750221,1766658330303,-5000.0,0.000416,60]
[399750222,1766658330335,-5000.0,0.000416,60]
[399750223,1766658330367,-5000.0,0.000416,60]
[399750224,1766658330399,-5000.0,0.000416,60]
[399750225,1766658330435,-152.19,0.00041628,120]
[399750226,1766658330492,-150.0,0.00041652,120]
[399750227,1766658330543,-184.0,0.000417,120]
[399750228,1766658330580,-150.0,0.00041716,120]
[399750229,1766658330616,-152.19,0.00041728,120]
[399750230,1766658330651,-152.19,0.00041828,120]
[399750231,1766658330685,-45000.0,0.000419,120]
[399750232,1766658330719,-152.19,0.00041928,120]
[399750233,1766658330752,-10000.0,0.0004195,120]
[399750234,1766658330786,-10000.0,0.00042,120]
[399750235,1766658330820,-150.0,0.00042,120]
[399750236,1766658330852,-200.0,0.00042,120]
[399750237,1766658330885,-1072.0,0.00042,120]
[399750238,1766658330916,-10000.0,0.00042,110]
[399750239,1766658330953,-3001.0,0.00042,90]
[399750240,1766658330984,-154.01568961,0.00042,120]
[399750241,1766658331015,-202.3,0.00042,120]
[399750242,1766658331048,-500.0,0.00042,64]
[399750243,1766658331079,-423.5471165,0.00042,120]
[399750244,1766658331110,-436.98435311,0.00042,120]
[399750245,1766658331139,-586.6,0.00042,120]
[399750246,1766658331170,-152.20016955,0.00042,120]
[399750247,1766658331202,-150.0,0.00042,60]
[399750248,1766658331235,-302.0,0.00042,60]
[399750249,1766658331269,-500.0,0.00042,120]
[399750250,1766658331305,-152.19,0.00042028,120]
[399750251,1766658331340,-150.0,0.0004207,120]
[399750252,1766658331374,-2542.0,0.000421,120]
[399750253,1766658331407,-152.19,0.00042128,120]
[399750254,1766658331445,-200.0,0.00042181,120]
[399750255,1766658331481,-2879.39,0.00042191,120]
[399750256,1766658331516,-184.0,0.000422,120]
[399750257,1766658331556,-152.19,0.00042228,120]
[399750258,1766658331593,-150.0,0.00042278,60]
[399750259,1766658331626,-150.0,0.00042278,60]
[399750260,1766658331661,-377297.40871755,0.000423,120]
[399750261,1766658331693,-727.88846014,0.0004231,120]
[399750262,1766658331724,-250.0,0.00042313,120]
[399750263,1766658331759,-152.19,0.00042328,120]
[399750264,1766658331792,-152.19,0.00042428,120]
[399750265,1766658331826,-4101.09916054,0.0004246,120]
[399750266,1766658331858,-3130.22419403,0.00042475,120]
[399750267,1766658331894,-2509.0,0.00042498,60]
[399750268,1766658331933,-10504.0,0.000425,120]
[399750269,1766658331965,-554.53269705,0.000425,120]
[399750270,1766658331997,-500.0,0.000425,120]
[399750271,1766658332032,-152.19,0.00042528,120]
[399750272,1766658332063,-40897.18683637,0.0004255,120]
[399750273,1766658332094,-210.69471396,0.00042568,120]
[399750274,1766658332124,-150.0,0.000426,120]
[399750275,1766658332156,-152.19,0.00042628,120]
[399750276,1766658332187,-212.15038901,0.00042632,120]
[399750277,1766658332220,-673.36,0.00042632,120]
[399750278,1766658332252,-166.21479295,0.00042632,120]
[399750279,1766658332285,-826621.14,0.0004269,120]
[399750280,1766658332316,-59205.58514,0.000427,120]
[399750281,1766658332348,-150.0,0.000427,120]
[399750282,1766658332382,-152.19,0.00042728,120]
[399750283,1766658332413,-174.0,0.000428,120]
[399750284,1766658332444,-150.0,0.000428,120]
[399750285,1766658332478,-184.0,0.000428,120]
[399750286,1766658332510,-5915.06084242,0.00042818,60]
[399750287,1766658332541,-49199.60429497,0.00042818,60]
[399750288,1766658332572,-732.15173695,0.00042818,60]
[399750289,1766658332605,-152.19,0.00042828,120]
[399750290,1766658332638,-151.55,0.0004285,120]
[399750291,1766658332671,-151.3,0.00042862,120]
[399750292,1766658332704,-150.0,0.00042876,120]
[399750293,1766658332774,-150.0,0.00042902,120]
[399750294,1766658332809,-152.19,0.00042928,120]
[399750295,1766658332841,-151.55,0.0004295,120]
[399750296,1766658332874,-151.3,0.00042962,120]
[399750297,1766658332905,-295.11485204,0.00043,120]
[399750298,1766658332933,-150.0,0.00043,120]
[399750299,1766658332961,-342.26168667,0.00043,120]
[399750300,1766658332988,-500.0,0.00043,65]
[399750301,1766658333018,-193.44252792,0.00043,120]
[399750302,1766658333049,-159.7236254,0.00043,120]
[399750303,1766658333081,-2793.0,0.00043,120]
[399750304,1766658333113,-150.0,0.00043,60]
[399750305,1766658333145,-500.0,0.00043,120]
[399750306,1766658333177,-204.46,0.00043014,120]
[399750307,1766658333399,-152.19,0.00043028,120]
[399750308,1766658333476,-151.55,0.0004305,120]
[399750309,1766658333510,-151.3,0.00043062,120]
[399750310,1766658333548,-152.34093792,0.00043128,120]
[399750311,1766658333583,-151.55,0.0004315,120]
[399750312,1766658333617,-151.3,0.00043162,120]
[399750313,1766658333649,-200.0,0.00043242,120]
[399750314,1766658333682,-151.55,0.0004325,120]
[399750315,1766658333715,-151.43627562,0.00043262,120]
[399750316,1766658333748,-2879.39,0.00043287,120]
[399750317,1766658333778,-174.0,0.000433,120]
[399750318,1766658333812,-184.0,0.000433,120]
[399750319,1766658333843,-151.55,0.0004335,120]
[399750320,1766658333875,-150.0,0.00043406,120]
[399750321,1766658333907,-150.0,0.00043445,120]
[399750322,1766658333940,-151.55,0.0004345,120]
[399750323,1766658333970,-500.0,0.000435,120]
[399750324,1766658334001,-644.13,0.00043547,120]
[399750325,1766658334036,-151.75280149,0.0004355,120]
[399750326,1766658334067,-150.0,0.00043622,120]
[399750327,1766658334098,-200.97972596,0.00043664,120]
[399750328,1766658334130,-150.0,0.00043768,120]
[399750329,1766658334161,-150.0,0.00043784,120]
[399750330,1766658334191,-303.73,0.000438,120]
[399750331,1766658334224,-174.0,0.000439,120]
[399750332,1766658334257,-184.0,0.000439,120]
[399750333,1766658334289,-1053.39429566,0.00043987,120]
[399750334,1766658334320,-1000.0,0.00043999,120]
[399750335,1766658334353,-200.0,0.00044,120]
[399750336,1766658334384,-10000.0,0.00044,120]
[399750337,1766658334415,-200.0,0.00044,120]
[399750338,1766658334446,-3315.40889069,0.00044,120]
[399750339,1766658334476,-500.0,0.00044,66]
[399750340,1766658334506,-299.38424838,0.00044,60]
[399750341,1766658334535,-500.0,0.00044,120]
[399750342,1766658334566,-150.0,0.00044056,120]
[399750343,1766658334599,-150.0,0.00044093,120]
[399750344,1766658334631,-1444.0,0.00044164,120]
[399750345,1766658334662,-158.84969417,0.0004425,120]
[399750346,1766658334694,-200.0,0.00044302,120]
[399750347,1766658334728,-2879.39,0.00044383,120]
[399750348,1766658334759,-218.57236467,0.00044395,120]
[399750349,1766658334790,-174.0,0.000444,120]
[399750350,1766658334823,-184.0,0.000444,120]
[399750351,1766658334855,-19061.1465695,0.000444,120]
[399750352,1766658334887,-302.96807311,0.000445,120]
[399750353,1766658334919,-500.0,0.000445,120]
[399750354,1766658334952,-150.0,0.000446,120]
[399750355,1766658334986,-150.0,0.00044687,120]
[399750356,1766658335021,-995.4,0.000447,120]
[399750357,1766658335054,-200.97972596,0.0004476,120]
[399750358,1766658335089,-200000.0,0.000449,120]
[399750359,1766658335123,-200000.0,0.000449,120]
[399750360,1766658335156,-200000.0,0.000449,120]
[399750361,1766658335189,-200000.0,0.000449,120]
[399750362,1766658335221,-200000.0,0.000449,120]
[399750363,1766658335253,-300000.0,0.000449,120]
[399750364,1766658335284,-300000.0,0.000449,120]
[399750365,1766658335315,-300000.0,0.000449,120]
[399750366,1766658335347,-300000.0,0.000449,120]
[399750367,1766658335380,-300000.0,0.000449,120]
[399750368,1766658335411,-202905.84,0.000449,120]
[399750369,1766658335443,-300000.0,0.000449,120]
[399750370,1766658335474,-300000.0,0.000449,120]
[399750371,1766658335506,-300000.0,0.000449,120]
[399750372,1766658335537,-300000.0,0.000449,120]
[399750373,1766658335568,-300000.0,0.000449,120]
[399750374,1766658335600,-150.0,0.00044954,120]
[399750375,1766658335632,-1000.0,0.00044999,120]
[399750376,1766658335663,-3330.0,0.00045,120]
[399750377,1766658335693,-174.0,0.00045,120]
[399750378,1766658335725,-75879.10865629,0.00045,120]
[399750379,1766658342543,-300.251825,0.00038522,90]
[399750380,1766658342590,-161.31658477,0.000399,120]
[399750381,1766658342688,-3000.0,0.00042882,60]
[399750382,1766658342732,-3000.0,0.00042882,60]
[399750383,1766658342768,-3000.0,0.00042882,60]
[399750384,1766658342803,-3000.0,0.00042882,60]
[399750385,1766658342837,-1756.0,0.00042882,60]
[399750386,1766658342876,-128120.89134272,0.00045,120]
[399750387,1766658342911,-200.0,0.00045,120]
[399750388,1766658342944,-500.0,0.00045,120]
[399750389,1766658342976,-222.0,0.00045,120]
[399750390,1766658343009,-329.61416426,0.00045,120]
[399750391,1766658343045,-150.54,0.00045,120]
[399750392,1766658343080,-200.02017559,0.00045,120]
[399750393,1766658343112,-4110.39,0.00045,120]
[399750394,1766658343145,-184.0,0.00045,120]
[399750395,1766658343184,-2793.0,0.00045,120]
[399750396,1766658343220,-669.03,0.00045,120]
[399750397,1766658343255,-600.0,0.00045,120]
[399750398,1766658343289,-500.0,0.00045,120]
[399750399,1766658343322,-690.3754058,0.00045,120]
[399750400,1766658343354,-2800.0,0.00045,120]
[399750401,1766658343385,-600.0,0.00045,120]
[399750402,1766658343417,-600.0,0.00045,120]
[399750403,1766658343452,-220.0,0.00045,120]
[399750404,1766658343483,-2000.0,0.00045,120]
[399750405,1766658343514,-1158.07,0.00045,120]
[399750406,1766658343548,-954.22,0.00045,120]
[399750407,1766658343583,-200.0,0.00045363,120]
[399750408,1766658343617,-2879.39,0.00045479,120]
[399750409,1766658343650,-174.0,0.000455,120]
[399750410,1766658343681,-184.0,0.000455,120]
[399750411,1766658343713,-500.0,0.000455,120]
[399750412,1766658343747,-5000000.0,0.0004555,120]
[399750413,1766658343778,-200.97972596,0.00045856,120]
[399750414,1766658343809,-1000.0,0.000459,120]
[399750415,1766658343840,-10000.0,0.0004595,120]
[399750416,1766658343870,-846.1,0.00045985,120]
[399750417,1766658343902,-1000.0,0.00045999,120]
[399750418,1766658343952,-200.0,0.00046,120]
[399750419,1766658343986,-500.0,0.00046,120]
[399750420,1766658344021,-500.0,0.00046,120]
[399750421,1766658344057,-378.0,0.00046,120]
[399750422,1766658344093,-345.78086081,0.00046,90]
[399750423,1766658344128,-360.05099057,0.00046,120]
[399750424,1766658344161,-264.73210124,0.00046,120]
[399750425,1766658344195,-2962.55250558,0.00046,120]
[399750426,1766658344226,-500.0,0.00046,120]
[399750427,1766658344260,-174.0,0.000461,120]
[399750428,1766658344294,-184.0,0.000461,120]
[399750429,1766658344328,-200.0,0.00046424,120]
[399750430,1766658344360,-500.0,0.000465,120]
[399750431,1766658344391,-500.0,0.000465,120]
[399750432,1766658344424,-2879.39,0.00046575,120]
[399750433,1766658344458,-174.0,0.000466,120]
[399750434,1766658344490,-184.0,0.000466,120]
[399750435,1766658344523,-1326.65324426,0.000468,120]
[399750436,1766658344556,-618.46235589,0.000469,120]
[399750437,1766658344588,-13858.0,0.0004695,120]
[399750438,1766658344620,-200.97972596,0.00046952,120]
[399750439,1766658344654,-1000.0,0.00046999,120]
[399750440,1766658344688,-252.88921901,0.00047,120]
[399750441,1766658344722,-500.0,0.00047,120]
[399750442,1766658344755,-500.0,0.00047,120]
[399750443,1766658344788,-10000.0,0.00047,120]
[399750444,1766658344820,-2793.0,0.00047,120]
[399750445,1766658344853,-500.0,0.00047,120]
[399750446,1766658344885,-174.0,0.000472,120]
[399750447,1766658344918,-184.0,0.000472,120]
[399750448,1766658344951,-286.42389294,0.00047203,120]
[399750449,1766658344983,-1158.07,0.0004725,120]